Workbook

Sheet 1.집계표(구분1)
A2: 2025학년도 2학기 연구활동종사자 정기안전교육 이수율 집계표[최종]
D3: [기준: 2025.10.27.최종]
A4: 구 분 | B4: 대학/기관 | C4: 대상자(명) | D4: 이수자(명) | E4: 미이수자(명) | F4: 이수율(%)
A5: 교원 | B5: 교원/직원 | C5: ='2.집계표(구분2)'!C7 -> 155 | D5: ='2.집계표(구분2)'!D7 -> 54 | E5: =C5-D5 -> 101 | F5: =D5/C5 -> 0.3483870968
A6: 학부생 | B6: 전체 | C6: ='2.집계표(구분2)'!C13 -> 3442 | D6: ='2.집계표(구분2)'!D13 -> 899 | E6: =C6-D6 -> 2543 | F6: 0.2611853574
A7: 대학원생 | B7: 전체 | C7: ='2.집계표(구분2)'!C17 -> 645 | D7: ='2.집계표(구분2)'!D17 -> 253 | E7: =C7-D7 -> 392 | F7: 0.392248062
A8: 연구원 | B8: 원주산학협력단 | C8: ='2.집계표(구분2)'!C19 -> 42 | D8: ='2.집계표(구분2)'!D19 -> 19 | E8: =C8-D8 -> 23 | F8: 0.4523809524
A9: 합계 | C9: =SUM(C5:C8) -> 4284 | D9: =SUM(D5:D8) -> 1225 | E9: =SUM(E5:E8) -> 3059 | F9: =D9/C9 -> 0.2859477124

Sheet 2.집계표(구분2)
A2: 2025학년도 2학기 연구활동종사자 정기안전교육 이수율 집계표
D3: ='1.집계표(구분1)'!D3:F3 -> [기준: 2025.10.27.최종]
A4: 구 분 | B4: 대학/기관 | C4: 대상자(명) | D4: 이수자(명) | E4: 미이수자(명) | F4: 이수율(%)
A5: 교원 | B5: 교원 | C5: ='3. 교육이수 현황(소속 기준)'!E5 -> 145 | D5: ='3. 교육이수 현황(소속 기준)'!F5 -> 49 | E5: =C5-D5 -> 96 | F5: =D5/C5 -> 0.3379310345
A6: 직원 | B6: 실습지원 직원 | C6: ='3. 교육이수 현황(소속 기준)'!E7 -> 10 | D6: ='3. 교육이수 현황(소속 기준)'!F7 -> 5 | E6: =C6-D6 -> 5 | F6: =D6/C6 -> 0.5
A7: 소 계 | C7: =SUM(C5:C6) -> 155 | D7: =SUM(D5:D6) -> 54 | E7: =SUM(C7-D7) -> 101 | F7: =D7/C7 -> 0.3483870968
A8: 학부생 | B8: 글로벌창의융합대학 디자인예술학부 | C8: ='3. 교육이수 현황(소속 기준)'!E71+'3. 교육이수 현황(소속 기준)'!E72+'3. 교육이수 현황(소속 기준)'!E73+'3. 교육이수 현황(소속 기준)'!E74+'3. 교육이수 현황(소속 기준)'!E75+'3. 교육이수 현황(소속 기준)'!E112+'3. 교육이수 현황(소속 기준)'!E113+'3. 교육이수 현황(소속 기준)'!E114+'3. 교육이수 현황(소속 기준)'!E115 -> 253 | D8: ='3. 교육이수 현황(소속 기준)'!F71+'3. 교육이수 현황(소속 기준)'!F72+'3. 교육이수 현황(소속 기준)'!F73+'3. 교육이수 현황(소속 기준)'!F74+'3. 교육이수 현황(소속 기준)'!F75+'3. 교육이수 현황(소속 기준)'!F112+'3. 교육이수 현황(소속 기준)'!F113+'3. 교육이수 현황(소속 기준)'!F114+'3. 교육이수 현황(소속 기준)'!F115 -> 58 | E8: =C8-D8 -> 195 | F8: =D8/C8 -> 0.2292490119
B9: 과학기술융합대학 (과학기술대학 포함) | C9: ='3. 교육이수 현황(소속 기준)'!E51+'3. 교육이수 현황(소속 기준)'!E52+'3. 교육이수 현황(소속 기준)'!E53+'3. 교육이수 현황(소속 기준)'!E54+'3. 교육이수 현황(소속 기준)'!E55+'3. 교육이수 현황(소속 기준)'!E59+'3. 교육이수 현황(소속 기준)'!E60+'3. 교육이수 현황(소속 기준)'!E61+'3. 교육이수 현황(소속 기준)'!E62+'3. 교육이수 현황(소속 기준)'!E63+'3. 교육이수 현황(소속 기준)'!E64+'3. 교육이수 현황(소속 기준)'!E65+'3. 교육이수 현황(소속 기준)'!E66+'3. 교육이수 현황(소속 기준)'!E67+'3. 교육이수 현황(소속 기준)'!E68+'3. 교육이수 현황(소속 기준)'!E69+'3. 교육이수 현황(소속 기준)'!E70+'3. 교육이수 현황(소속 기준)'!E89+'3. 교육이수 현황(소속 기준)'!E90 -> 587 | D9: ='3. 교육이수 현황(소속 기준)'!F51+'3. 교육이수 현황(소속 기준)'!F52+'3. 교육이수 현황(소속 기준)'!F53+'3. 교육이수 현황(소속 기준)'!F54+'3. 교육이수 현황(소속 기준)'!F55+'3. 교육이수 현황(소속 기준)'!F59+'3. 교육이수 현황(소속 기준)'!F60+'3. 교육이수 현황(소속 기준)'!F61+'3. 교육이수 현황(소속 기준)'!F62+'3. 교육이수 현황(소속 기준)'!F63+'3. 교육이수 현황(소속 기준)'!F64+'3. 교육이수 현황(소속 기준)'!F65+'3. 교육이수 현황(소속 기준)'!F66+'3. 교육이수 현황(소속 기준)'!F67+'3. 교육이수 현황(소속 기준)'!F68+'3. 교육이수 현황(소속 기준)'!F69+'3. 교육이수 현황(소속 기준)'!F70+'3. 교육이수 현황(소속 기준)'!F89+'3. 교육이수 현황(소속 기준)'!F90 -> 194 | E9: =C9-D9 -> 393 | F9: =D9/C9 -> 0.3304940375
B10: 소프트웨어디지털 헬스케어융합대학 [보건과학대학원 포함] | C10: ='3. 교육이수 현황(소속 기준)'!E17+'3. 교육이수 현황(소속 기준)'!E56+'3. 교육이수 현황(소속 기준)'!E57+'3. 교육이수 현황(소속 기준)'!E58+'3. 교육이수 현황(소속 기준)'!E79+'3. 교육이수 현황(소속 기준)'!E80+'3. 교육이수 현황(소속 기준)'!E81+'3. 교육이수 현황(소속 기준)'!E82+'3. 교육이수 현황(소속 기준)'!E83+'3. 교육이수 현황(소속 기준)'!E84+'3. 교육이수 현황(소속 기준)'!E85+'3. 교육이수 현황(소속 기준)'!E86+'3. 교육이수 현황(소속 기준)'!E87+'3. 교육이수 현황(소속 기준)'!E88+'3. 교육이수 현황(소속 기준)'!E91+'3. 교육이수 현황(소속 기준)'!E92+'3. 교육이수 현황(소속 기준)'!E93+'3. 교육이수 현황(소속 기준)'!E94+'3. 교육이수 현황(소속 기준)'!E95+'3. 교육이수 현황(소속 기준)'!E96+'3. 교육이수 현황(소속 기준)'!E97+'3. 교육이수 현황(소속 기준)'!E98+'3. 교육이수 현황(소속 기준)'!E99+'3. 교육이수 현황(소속 기준)'!E100+'3. 교육이수 현황(소속 기준)'!E101+'3. 교육이수 현황(소속 기준)'!E102+'3. 교육이수 현황(소속 기준)'!E103+'3. 교육이수 현황(소속 기준)'!E104+'3. 교육이수 현황(소속 기준)'!E105+'3. 교육이수 현황(소속 기준)'!E106+'3. 교육이수 현황(소속 기준)'!E107+'3. 교육이수 현황(소속 기준)'!E108+'3. 교육이수 현황(소속 기준)'!E109+'3. 교육이수 현황(소속 기준)'!E110+'3. 교육이수 현황(소속 기준)'!E111 -> 1683 | D10: ='3. 교육이수 현황(소속 기준)'!F17+'3. 교육이수 현황(소속 기준)'!F56+'3. 교육이수 현황(소속 기준)'!F57+'3. 교육이수 현황(소속 기준)'!F58+'3. 교육이수 현황(소속 기준)'!F79+'3. 교육이수 현황(소속 기준)'!F80+'3. 교육이수 현황(소속 기준)'!F81+'3. 교육이수 현황(소속 기준)'!F82+'3. 교육이수 현황(소속 기준)'!F83+'3. 교육이수 현황(소속 기준)'!F84+'3. 교육이수 현황(소속 기준)'!F85+'3. 교육이수 현황(소속 기준)'!F86+'3. 교육이수 현황(소속 기준)'!F87+'3. 교육이수 현황(소속 기준)'!F88+'3. 교육이수 현황(소속 기준)'!F91+'3. 교육이수 현황(소속 기준)'!F92+'3. 교육이수 현황(소속 기준)'!F93+'3. 교육이수 현황(소속 기준)'!F94+'3. 교육이수 현황(소속 기준)'!F95+'3. 교육이수 현황(소속 기준)'!F96+'3. 교육이수 현황(소속 기준)'!F97+'3. 교육이수 현황(소속 기준)'!F98+'3. 교육이수 현황(소속 기준)'!F99+'3. 교육이수 현황(소속 기준)'!F100+'3. 교육이수 현황(소속 기준)'!F101+'3. 교육이수 현황(소속 기준)'!F102+'3. 교육이수 현황(소속 기준)'!F103+'3. 교육이수 현황(소속 기준)'!F104+'3. 교육이수 현황(소속 기준)'!F105+'3. 교육이수 현황(소속 기준)'!F106+'3. 교육이수 현황(소속 기준)'!F107+'3. 교육이수 현황(소속 기준)'!F108+'3. 교육이수 현황(소속 기준)'!F109+'3. 교육이수 현황(소속 기준)'!F110+'3. 교육이수 현황(소속 기준)'!F111 -> 378 | E10: 1305 | F10: 0.2245989305
B11: RC융합대학 | C11: ='3. 교육이수 현황(소속 기준)'!E40+'3. 교육이수 현황(소속 기준)'!E41+'3. 교육이수 현황(소속 기준)'!E42+'3. 교육이수 현황(소속 기준)'!E43+'3. 교육이수 현황(소속 기준)'!E44+'3. 교육이수 현황(소속 기준)'!E45+'3. 교육이수 현황(소속 기준)'!E46+'3. 교육이수 현황(소속 기준)'!E47+'3. 교육이수 현황(소속 기준)'!E48+'3. 교육이수 현황(소속 기준)'!E49+'3. 교육이수 현황(소속 기준)'!E50 -> 800 | D11: ='3. 교육이수 현황(소속 기준)'!F40+'3. 교육이수 현황(소속 기준)'!F41+'3. 교육이수 현황(소속 기준)'!F42+'3. 교육이수 현황(소속 기준)'!F43+'3. 교육이수 현황(소속 기준)'!F44+'3. 교육이수 현황(소속 기준)'!F45+'3. 교육이수 현황(소속 기준)'!F46+'3. 교육이수 현황(소속 기준)'!F47+'3. 교육이수 현황(소속 기준)'!F48+'3. 교육이수 현황(소속 기준)'!F49+'3. 교육이수 현황(소속 기준)'!F50 -> 269 | E11: 531 | F11: 0.33625
B12: 반도체시스템공학부 | C12: ='3. 교육이수 현황(소속 기준)'!E76+'3. 교육이수 현황(소속 기준)'!E77+'3. 교육이수 현황(소속 기준)'!E78 -> 119 | D12: ='3. 교육이수 현황(소속 기준)'!F76+'3. 교육이수 현황(소속 기준)'!F77+'3. 교육이수 현황(소속 기준)'!F78 -> 0 | E12: 119 | F12: 0
A13: 소 계 | C13: =SUM(C8:C12) -> 3442 | D13: =SUM(D8:D12) -> 899 | E13: =SUM(C13-D13) -> 2543 | F13: =D13/C13 -> 0.2611853574
A14: 대학원생 | B14: 글로벌창의융합대학 디자인예술학부 | C14: ='3. 교육이수 현황(소속 기준)'!E19+'3. 교육이수 현황(소속 기준)'!E27+'3. 교육이수 현황(소속 기준)'!E29 -> 27 | D14: ='3. 교육이수 현황(소속 기준)'!F19+'3. 교육이수 현황(소속 기준)'!F27+'3. 교육이수 현황(소속 기준)'!F29 -> 5 | E14: =C14-D14 -> 22 | F14: =D14/C14 -> 0.1851851852
B15: 과학기술융합대학 | C15: ='3. 교육이수 현황(소속 기준)'!E23+'3. 교육이수 현황(소속 기준)'!E28+'3. 교육이수 현황(소속 기준)'!E36+'3. 교육이수 현황(소속 기준)'!E37+'3. 교육이수 현황(소속 기준)'!E38+'3. 교육이수 현황(소속 기준)'!E39 -> 125 | D15: ='3. 교육이수 현황(소속 기준)'!F23+'3. 교육이수 현황(소속 기준)'!F28+'3. 교육이수 현황(소속 기준)'!F36+'3. 교육이수 현황(소속 기준)'!F37+'3. 교육이수 현황(소속 기준)'!F38+'3. 교육이수 현황(소속 기준)'!F39 -> 61 | E15: =C15-D15 -> 64 | F15: 0.488
B16: 소프트웨어디지털 헬스케어융합대학 [보건과학대학원 포함] | C16: ='3. 교육이수 현황(소속 기준)'!E8+'3. 교육이수 현황(소속 기준)'!E9+'3. 교육이수 현황(소속 기준)'!E10+'3. 교육이수 현황(소속 기준)'!E11+'3. 교육이수 현황(소속 기준)'!E12+'3. 교육이수 현황(소속 기준)'!E13+'3. 교육이수 현황(소속 기준)'!E14+'3. 교육이수 현황(소속 기준)'!E15+'3. 교육이수 현황(소속 기준)'!E16+'3. 교육이수 현황(소속 기준)'!E18+'3. 교육이수 현황(소속 기준)'!E20+'3. 교육이수 현황(소속 기준)'!E21+'3. 교육이수 현황(소속 기준)'!E22+'3. 교육이수 현황(소속 기준)'!E24+'3. 교육이수 현황(소속 기준)'!E25+'3. 교육이수 현황(소속 기준)'!E26++'3. 교육이수 현황(소속 기준)'!E30+'3. 교육이수 현황(소속 기준)'!E31+'3. 교육이수 현황(소속 기준)'!E32+'3. 교육이수 현황(소속 기준)'!E33+'3. 교육이수 현황(소속 기준)'!E34+'3. 교육이수 현황(소속 기준)'!E35 -> 493 | D16: ='3. 교육이수 현황(소속 기준)'!F8+'3. 교육이수 현황(소속 기준)'!F9+'3. 교육이수 현황(소속 기준)'!F10+'3. 교육이수 현황(소속 기준)'!F11+'3. 교육이수 현황(소속 기준)'!F12+'3. 교육이수 현황(소속 기준)'!F13+'3. 교육이수 현황(소속 기준)'!F14+'3. 교육이수 현황(소속 기준)'!F15+'3. 교육이수 현황(소속 기준)'!F16+'3. 교육이수 현황(소속 기준)'!F18+'3. 교육이수 현황(소속 기준)'!F20+'3. 교육이수 현황(소속 기준)'!F21+'3. 교육이수 현황(소속 기준)'!F22+'3. 교육이수 현황(소속 기준)'!F24+'3. 교육이수 현황(소속 기준)'!F25+'3. 교육이수 현황(소속 기준)'!F26++'3. 교육이수 현황(소속 기준)'!F30+'3. 교육이수 현황(소속 기준)'!F31+'3. 교육이수 현황(소속 기준)'!F32+'3. 교육이수 현황(소속 기준)'!F33+'3. 교육이수 현황(소속 기준)'!F34+'3. 교육이수 현황(소속 기준)'!F35 -> 187 | E16: =C16-D16 -> 306 | F16: 0.3793103448
A17: 소 계 | C17: =SUM(C14:C16) -> 645 | D17: =SUM(D14:D16) -> 253 | E17: =SUM(C17-D17) -> 392 | F17: 0.392248062
A18: 연구원 | B18: 원주산학협력단 | C18: ='3. 교육이수 현황(소속 기준)'!E6 -> 42 | D18: ='3. 교육이수 현황(소속 기준)'!F6 -> 19 | E18: =C18-D18 -> 23 | F18: 0.4523809524
A19: 소 계 | C19: =C18 -> 42 | D19: =D18 -> 19 | E19: 23 | F19: =D19/C19 -> 0.4523809524
A20: 합계 | C20: =SUM(C7+C13+C17+C19) -> 4284 | D20: =SUM(D7+D13+D17+D19) -> 1225 | E20: =SUM(C20-D20) -> 3059 | F20: 0.2859477124

Sheet 3. 교육이수 현황(소속 기준)
A2: 2025학년도 2학기 연구활동종사자 정기안전교육 이수율 현황[소속 기준]
F3: [기준: 2025.10.27.최종]
A4: 순번 | B4: 소속1 | C4: 소속2 | D4: 소속3 | E4: 대상자 | F4: 이수자 | G4: 미이수자 | H4: 이수율
A5: 1 | B5: 교직원 | C5: 전임교원 | D5: 전임교원 | E5: 145 | F5: 49 | G5: =E5-F5 -> 96 | H5: =F5/E5 -> 0.3379310345
A6: 2 | B6: 소속외연구실 | C6: 원주산학협력단 | D6: 원주산학협력단 | E6: 42 | F6: 19 | G6: =E6-F6 -> 23 | H6: =F6/E6 -> 0.4523809524
A7: 3 | B7: 직원 | C7: 실습지원 직원 | D7: 실습지원 직원 | E7: 10 | F7: 5 | G7: 5 | H7: 0.5
A8: 4 | B8: 보건과학대학원 | C8: 보건과학대학원 | D8: 과학수사학전공 | E8: 19 | F8: 0 | G8: =E8-F8 -> 19 | H8: =F8/E8 -> 0
A9: 5 | B9: 보건과학대학원 | C9: 보건과학대학원 | D9: 구강건강증진학전공 | E9: 10 | F9: 8 | G9: 2 | H9: 0.8
A10: 6 | B10: 보건과학대학원 | C10: 보건과학대학원 | D10: 보건관리학전공 | E10: 21 | F10: 0 | G10: 21 | H10: 0
A11: 7 | B11: 보건과학대학원 | C11: 보건과학대학원 | D11: 의생명과학전공 | E11: 18 | F11: 4 | G11: 14 | H11: 0.2222222222
A12: 8 | B12: 보건과학대학원 | C12: 보건과학대학원 | D12: 인간공학치료학전공 | E12: 13 | F12: 0 | G12: 13 | H12: 0
A13: 9 | B13: 보건과학대학원 | C13: 보건과학대학원 | D13: 헬스케어융합학전공 | E13: 8 | F13: 0 | G13: 8 | H13: 0
A14: 10 | B14: 보건과학대학원 | C14: 보건과학대학원 | D14: 환경공학전공 | E14: 11 | F14: 0 | G14: 11 | H14: 0
A15: 11 | B15: 보건환경대학원 | C15: 보건환경대학원 | D15: 보건관리학전공 | E15: 1 | F15: 0 | G15: 1 | H15: 0
A16: 12 | B16: 보건환경대학원 | C16: 보건환경대학원 | D16: 의생명과학전공 | E16: 1 | F16: 0 | G16: 1 | H16: 0
A17: 13 | B17: 의과대학(치위생) | C17: 원주의과대학 | D17: 치위생학과 | E17: 5 | F17: 4 | G17: 1 | H17: 0.8
A18: 14 | B18: 일반대학원 | C18: 일반대학원(원주) | D18: YM-KIST 바이오헬스융합학과 | E18: 1 | F18: 0 | G18: 1 | H18: 0
A19: 15 | B19: 일반대학원 | C19: 일반대학원(원주) | D19: 디자인경영학협동과정 | E19: 1 | F19: 0 | G19: 1 | H19: 0
A20: 16 | B20: 일반대학원 | C20: 일반대학원(원주) | D20: 디지털헬스케어학과 | E20: 5 | F20: 2 | G20: 3 | H20: 0.4
A21: 17 | B21: 일반대학원 | C21: 일반대학원(원주) | D21: 로보틱아트학과 | E21: 1 | F21: 1 | G21: 0 | H21: 1
A22: 18 | B22: 일반대학원 | C22: 일반대학원(원주) | D22: 물리치료학과 | E22: 65 | F22: 13 | G22: 52 | H22: 0.2
A23: 19 | B23: 일반대학원 | C23: 일반대학원(원주) | D23: 물리학과 | E23: 3 | F23: 0 | G23: 3 | H23: 0
A24: 20 | B24: 일반대학원 | C24: 일반대학원(원주) | D24: 방사선융합공학과 | E24: 37 | F24: 10 | G24: 27 | H24: 0.2702702703
A25: 21 | B25: 일반대학원 | C25: 일반대학원(원주) | D25: 보건정책 및 관리학협동과정 | E25: 15 | F25: 0 | G25: 15 | H25: 0
A26: 22 | B26: 일반대학원 | C26: 일반대학원(원주) | D26: 보건행정학과 | E26: 50 | F26: 13 | G26: 37 | H26: 0.26
A27: 23 | B27: 일반대학원 | C27: 일반대학원(원주) | D27: 산업디자인학과 | E27: 9 | F27: 0 | G27: 9 | H27: 0
A28: 24 | B28: 일반대학원 | C28: 일반대학원(원주) | D28: 생명과학기술학 | E28: 20 | F28: 10 | G28: 10 | H28: 0.5
A29: 25 | B29: 일반대학원 | C29: 일반대학원(원주) | D29: 시각디자인학과 | E29: 17 | F29: 5 | G29: 12 | H29: 0.2941176471
A30: 26 | B30: 일반대학원 | C30: 일반대학원(원주) | D30: 의공학과 | E30: 66 | F30: 47 | G30: 19 | H30: 0.7121212121
A31: 27 | B31: 일반대학원 | C31: 일반대학원(원주) | D31: 임상병리학과 | E31: 21 | F31: 17 | G31: 4 | H31: 0.8095238095
A32: 28 | B32: 일반대학원 | C32: 일반대학원(원주) | D32: 작업치료학과 | E32: 57 | F32: 51 | G32: 6 | H32: 0.8947368421
A33: 29 | B33: 일반대학원 | C33: 일반대학원(원주) | D33: 전산학과 | E33: 43 | F33: 7 | G33: 36 | H33: 0.1627906977
A34: 30 | B34: 일반대학원 | C34: 일반대학원(원주) | D34: 정보통계학과 | E34: 7 | F34: 0 | G34: 7 | H34: 0
A35: 31 | B35: 일반대학원 | C35: 일반대학원(원주) | D35: 치위생학과 | E35: 23 | F35: 14 | G35: 9 | H35: 0.6086956522
A36: 32 | B36: 일반대학원 | C36: 일반대학원(원주) | D36: 패키징학과 | E36: 35 | F36: 4 | G36: 31 | H36: 0.1142857143
A37: 33 | B37: 일반대학원 | C37: 일반대학원(원주) | D37: 화학과 | E37: 24 | F37: 22 | G37: 2 | H37: 0.9166666667
A38: 34 | B38: 일반대학원 | C38: 일반대학원(원주) | D38: 환경공학과 | E38: 13 | F38: 6 | G38: 7 | H38: 0.4615384615
A39: 35 | B39: 일반대학원 | C39: 일반대학원(원주) | D39: 환경에너지공학과 | E39: 30 | F39: 19 | G39: 11 | H39: 0.6333333333
A40: 36 | B40: 학부(미래) | C40: RC융합대학 | D40: AI반도체학부 | E40: 82 | F40: 1 | G40: 81 | H40: 0.01219512195
A41: 37 | B41: 학부(미래) | C41: RC융합대학 | D41: 데이터사이언스학부 | E41: 37 | F41: 4 | G41: 33 | H41: 0.1081081081
A42: 38 | B42: 학부(미래) | C42: RC융합대학 | D42: 디자인예술학부 | E42: 67 | F42: 10 | G42: 57 | H42: 0.1492537313
A43: 39 | B43: 학부(미래) | C43: RC융합대학 | D43: 디지털헬스케어학부 | E43: 50 | F43: 0 | G43: 50 | H43: 0
A44: 40 | B44: 학부(미래) | C44: RC융합대학 | D44: 물리치료학과 | E44: 69 | F44: 43 | G44: 26 | H44: 0.6231884058
A45: 41 | B45: 학부(미래) | C45: RC융합대학 | D45: 방사선학과 | E45: 34 | F45: 0 | G45: 34 | H45: 0
A46: 42 | B46: 학부(미래) | C46: RC융합대학 | D46: 소프트웨어학부 | E46: 114 | F46: 1 | G46: 113 | H46: 0.008771929825
A47: 43 | B47: 학부(미래) | C47: RC융합대학 | D47: 임상병리학과 | E47: 47 | F47: 3 | G47: 44 | H47: 0.06382978723
A48: 44 | B48: 학부(미래) | C48: RC융합대학 | D48: 자율융합계열 | E48: 236 | F48: 180 | G48: 56 | H48: 0.7627118644
A49: 45 | B49: 학부(미래) | C49: RC융합대학 | D49: 작업치료학과 | E49: 37 | F49: 0 | G49: 37 | H49: 0
A50: 46 | B50: 학부(미래) | C50: RC융합대학 | D50: 치위생학과 | E50: 27 | F50: 27 | G50: 0 | H50: 1
A51: 47 | B51: 학부(미래) | C51: 과학기술대학 | D51: 물리학 | E51: 11 | F51: 0 | G51: 11 | H51: 0
A52: 48 | B52: 학부(미래) | C52: 과학기술대학 | D52: 생명과학 | E52: 8 | F52: 0 | G52: 8 | H52: 0
A53: 49 | B53: 학부(미래) | C53: 과학기술대학 | D53: 생명과학기술학부 | E53: 4 | F53: 1 | G53: 3 | H53: 0.25
A54: 50 | B54: 학부(미래) | C54: 과학기술대학 | D54: 수학 | E54: 6 | F54: 0 | G54: 6 | H54: 0
A55: 51 | B55: 학부(미래) | C55: 과학기술대학 | D55: 응용생명과학 | E55: 20 | F55: 4 | G55: 16 | H55: 0.2
A56: 52 | B56: 학부(미래) | C56: 과학기술대학 | D56: 정보통계학 | E56: 22 | F56: 1 | G56: 21 | H56: 0.04545454545
A57: 53 | B57: 학부(미래) | C57: 과학기술대학 | D57: 컴퓨터공학 | E57: 8 | F57: 0 | G57: 8 | H57: 0
A58: 54 | B58: 학부(미래) | C58: 과학기술대학 | D58: 컴퓨터정보통신공학부 | E58: 60 | F58: 0 | G58: 60 | H58: 0
A59: 55 | B59: 학부(미래) | C59: 과학기술대학 | D59: 패키징학 | E59: 16 | F59: 2 | G59: 14 | H59: 0.125
A60: 56 | B60: 학부(미래) | C60: 과학기술대학 | D60: 화학및의화학 | E60: 34 | F60: 11 | G60: 23 | H60: 0.3235294118
A61: 57 | B61: 학부(미래) | C61: 과학기술융합대학 | D61: AI반도체학전공 | E61: 2 | F61: 0 | G61: 2 | H61: 0
A62: 58 | B62: 학부(미래) | C62: 과학기술융합대학 | D62: 물리및공학물리학전공 | E62: 42 | F62: 5 | G62: 37 | H62: 0.119047619
A63: 59 | B63: 학부(미래) | C63: 과학기술융합대학 | D63: 생명과학기술학부 | E63: 4 | F63: 1 | G63: 3 | H63: 0.25
A64: 60 | B64: 학부(미래) | C64: 과학기술융합대학 | D64: 생명과학기술학전공 | E64: 150 | F64: 55 | G64: 95 | H64: 0.3666666667
A65: 61 | B65: 학부(미래) | C65: 과학기술융합대학 | D65: 친환경에너지공학전공 | E65: 46 | F65: 11 | G65: 35 | H65: 0.2391304348
A66: 62 | B66: 학부(미래) | C66: 과학기술융합대학 | D66: 패키징및물류학심화전공 | E66: 1 | F66: 0 | G66: 1 | H66: 0
A67: 63 | B67: 학부(미래) | C67: 과학기술융합대학 | D67: 패키징및물류학전공 | E67: 47 | F67: 14 | G67: 33 | H67: 0.2978723404
A68: 64 | B68: 학부(미래) | C68: 과학기술융합대학 | D68: 화학및의화학전공 | E68: 103 | F68: 70 | G68: 33 | H68: 0.6796116505
A69: 65 | B69: 학부(미래) | C69: 과학기술융합대학 | D69: 환경공학전공 | E69: 48 | F69: 16 | G69: =E69-F69 -> 32 | H69: 0.3333333333
A70: 66 | B70: 학부(미래) | C70: 과학기술융합대학 | D70: 환경에너지공학부 | E70: 3 | F70: 0 | G70: 3 | H70: =F70/E70 -> 0
A71: 67 | B71: 학부(미래) | C71: 글로벌창의융합대학 | D71: 고위자과정 | E71: 2 | F71: 2 | G71: 0 | H71: 1
A72: 68 | B72: 학부(미래) | C72: 글로벌창의융합대학 | D72: 디자인예술학부 | E72: 2 | F72: 0 | G72: 2 | H72: 0
A73: 69 | B73: 학부(미래) | C73: 글로벌창의융합대학 | D73: 디지털아트학전공 | E73: 27 | F73: 16 | G73: 11 | H73: 0.5925925926
A74: 70 | B74: 학부(미래) | C74: 글로벌창의융합대학 | D74: 산업디자인학전공 | E74: 41 | F74: 6 | G74: 35 | H74: 0.1463414634
A75: 71 | B75: 학부(미래) | C75: 글로벌창의융합대학 | D75: 시각디자인학 | E75: 107 | F75: 23 | G75: 84 | H75: 0.214953271
A76: 72 | B76: 학부(미래) | C76: 반도체시스템공학부 | D76: 반도체시스템융합공학전공 | E76: 30 | F76: 0 | G76: 30 | H76: 0
A77: 73 | B77: 학부(미래) | C77: 반도체시스템공학부 | D77: 반도체인프라및환경융합전공 | E77: 30 | F77: 0 | G77: 30 | H77: 0
A78: 74 | B78: 학부(미래) | C78: 반도체시스템공학부 | D78: 응용전기전자융합공학전공 | E78: 59 | F78: 0 | G78: 59 | H78: 0
A79: 75 | B79: 학부(미래) | C79: 보건과학대학 | D79: 물리치료학과 | E79: 27 | F79: 1 | G79: 26 | H79: 0.03703703704
A80: 76 | B80: 학부(미래) | C80: 보건과학대학 | D80: 방사선학과 | E80: 14 | F80: 0 | G80: 14 | H80: 0
A81: 77 | B81: 학부(미래) | C81: 보건과학대학 | D81: 보건.환경.의공학부 | E81: 1 | F81: 1 | G81: 0 | H81: 1
A82: 78 | B82: 학부(미래) | C82: 보건과학대학 | D82: 보건과학부 분자진단과학전공 | E82: 15 | F82: 6 | G82: 9 | H82: 0.4
A83: 79 | B83: 학부(미래) | C83: 보건과학대학 | D83: 보건과학부 재활보건학전공 | E83: 1 | F83: 0 | G83: 1 | H83: 0
A84: 80 | B84: 학부(미래) | C84: 보건과학대학 | D84: 보건행정학과 | E84: 17 | F84: 0 | G84: 17 | H84: 0
A85: 81 | B85: 학부(미래) | C85: 보건과학대학 | D85: 의공학부 | E85: 50 | F85: 7 | G85: 43 | H85: 0.14
A86: 82 | B86: 학부(미래) | C86: 보건과학대학 | D86: 의료시스템공학 | E86: 4 | F86: 1 | G86: 3 | H86: 0.25
A87: 83 | B87: 학부(미래) | C87: 보건과학대학 | D87: 임상병리학과 | E87: 11 | F87: 10 | G87: 1 | H87: 0.9090909091
A88: 84 | B88: 학부(미래) | C88: 보건과학대학 | D88: 작업치료학과 | E88: 5 | F88: 0 | G88: 5 | H88: 0
A89: 85 | B89: 학부(미래) | C89: 보건과학대학 | D89: 환경공학 | E89: 1 | F89: 0 | G89: 1 | H89: 0
A90: 86 | B90: 학부(미래) | C90: 보건과학대학 | D90: 환경공학부 | E90: 41 | F90: 4 | G90: 37 | H90: 0.09756097561
A91: 87 | B91: 학부(미래) | C91: 소프트웨어디지털헬스케어융합대학 | D91: AI보건정보관리학과 | E91: 29 | F91: 0 | G91: 29 | H91: 0
A92: 88 | B92: 학부(미래) | C92: 소프트웨어디지털헬스케어융합대학 | D92: 데이터사이언스학부 | E92: 2 | F92: 0 | G92: 2 | H92: 0
A93: 89 | B93: 학부(미래) | C93: 소프트웨어디지털헬스케어융합대학 | D93: 데이터사이언스학전공 | E93: 60 | F93: 0 | G93: 60 | H93: 0
A94: 90 | B94: 학부(미래) | C94: 소프트웨어디지털헬스케어융합대학 | D94: 디지털헬스케어전공 | E94: 105 | F94: 7 | G94: 98 | H94: 0.06666666667
A95: 91 | B95: 학부(미래) | C95: 소프트웨어디지털헬스케어융합대학 | D95: 디지털헬스케어학부 | E95: 2 | F95: 0 | G95: 2 | H95: 0
A96: 92 | B96: 학부(미래) | C96: 소프트웨어디지털헬스케어융합대학 | D96: 물리치료학과 | E96: 87 | F96: 9 | G96: 78 | H96: 0.1034482759
A97: 93 | B97: 학부(미래) | C97: 소프트웨어디지털헬스케어융합대학 | D97: 바이오공학전공 | E97: 41 | F97: 6 | G97: 35 | H97: 0.1463414634
A98: 94 | B98: 학부(미래) | C98: 소프트웨어디지털헬스케어융합대학 | D98: 방사선학과 | E98: 115 | F98: 7 | G98: 108 | H98: 0.06086956522
A99: 95 | B99: 학부(미래) | C99: 소프트웨어디지털헬스케어융합대학 | D99: 보건과학부 | E99: 1 | F99: 0 | G99: 1 | H99: 0
A100: 96 | B100: 학부(미래) | C100: 소프트웨어디지털헬스케어융합대학 | D100: 보건과학부 재활보건학전공 | E100: 38 | F100: 0 | G100: 38 | H100: =F100/E100 -> 0
A101: 97 | B101: 학부(미래) | C101: 소프트웨어디지털헬스케어융합대학 | D101: 보건의료정보관리학전공 | E101: 28 | F101: 0 | G101: 28 | H101: 0
A102: 98 | B102: 학부(미래) | C102: 소프트웨어디지털헬스케어융합대학 | D102: 보건행정학부 | E102: 5 | F102: 0 | G102: 5 | H102: 0
A103: 99 | B103: 학부(미래) | C103: 소프트웨어디지털헬스케어융합대학 | D103: 보건행정학전공 | E103: 112 | F103: 7 | G103: 105 | H103: 0.0625
A104: 100 | B104: 학부(미래) | C104: 소프트웨어디지털헬스케어융합대학 | D104: 소프트웨어전공 | E104: 280 | F104: 14 | G104: 266 | H104: 0.05
A105: 101 | B105: 학부(미래) | C105: 소프트웨어디지털헬스케어융합대학 | D105: 소프트웨어학부 | E105: 6 | F105: 0 | G105: 6 | H105: 0
A106: 102 | B106: 학부(미래) | C106: 소프트웨어디지털헬스케어융합대학 | D106: 의공학부 | E106: 2 | F106: 1 | G106: 1 | H106: 0.5
A107: 103 | B107: 학부(미래) | C107: 소프트웨어디지털헬스케어융합대학 | D107: 의공학전공 | E107: 159 | F107: 54 | G107: 105 | H107: 0.3396226415
A108: 104 | B108: 학부(미래) | C108: 소프트웨어디지털헬스케어융합대학 | D108: 임상병리학과 | E108: 160 | F108: 156 | G108: 4 | H108: =F108/E108 -> 0.975
A109: 105 | B109: 학부(미래) | C109: 소프트웨어디지털헬스케어융합대학 | D109: 작업치료학과 | E109: 107 | F109: 2 | G109: 105 | H109: 0.01869158879
A110: 106 | B110: 학부(미래) | C110: 소프트웨어디지털헬스케어융합대학 | D110: 치위생학과 | E110: 84 | F110: 84 | G110: 0 | H110: 1
A111: 107 | B111: 학부(미래) | C111: 소프트웨어디지털헬스케어융합대학 | D111: 헬스케어빅데이터전공 | E111: 20 | F111: 0 | G111: 20 | H111: 0
A112: 108 | B112: 학부(미래) | C112: 인문예술대학 | D112: 디자인예술학부 | E112: 68 | F112: 10 | G112: 58 | H112: 0.1470588235
A113: 109 | B113: 학부(미래) | C113: 인문예술대학 | D113: 디지털아트학 | E113: 1 | F113: 0 | G113: 1 | H113: 0
A114: 110 | B114: 학부(미래) | C114: 인문예술대학 | D114: 산업디자인학 | E114: 1 | F114: 0 | G114: 1 | H114: 0
A115: 111 | B115: 학부(미래) | C115: 인문예술대학 | D115: 시각디자인학 | E115: 4 | F115: 1 | G115: =E115-F115 -> 3 | H115: 0.25
A116: 합계(명) | E116: =SUM(E5:E115) -> 4284 | F116: =SUM(F5:F115) -> 1225 | G116: =SUM(G5:G115) -> 3059 | H116: 0.2859477124

Sheet 4. 교육이수 현황(이수율 기준)
A2: 2025학년도 2학기 연구활동종사자 정기안전교육 이수율 현황[소속 기준]
F3: [기준: 2025.10.27.최종]
A4: 순번 | B4: 소속1 | C4: 소속2 | D4: 소속3 | E4: 대상자 | F4: 이수자 | G4: 미이수자 | H4: 이수율
A5: 1 | B5: 일반대학원 | C5: 일반대학원(원주) | D5: 로보틱아트학과 | E5: 1 | F5: 1 | G5: =E5-F5 -> 0 | H5: =F5/E5 -> 1
A6: 2 | B6: 학부(미래) | C6: RC융합대학 | D6: 치위생학과 | E6: 27 | F6: 27 | G6: =E6-F6 -> 0 | H6: =F6/E6 -> 1
A7: 3 | B7: 학부(미래) | C7: 글로벌창의융합대학 | D7: 고위자과정 | E7: 2 | F7: 2 | G7: =E7-F7 -> 0 | H7: =F7/E7 -> 1
A8: 4 | B8: 학부(미래) | C8: 보건과학대학 | D8: 보건.환경.의공학부 | E8: 1 | F8: 1 | G8: =E8-F8 -> 0 | H8: =F8/E8 -> 1
A9: 5 | B9: 학부(미래) | C9: 소프트웨어디지털헬스케어융합대학 | D9: 치위생학과 | E9: 84 | F9: 84 | G9: =E9-F9 -> 0 | H9: =F9/E9 -> 1
A10: 6 | B10: 학부(미래) | C10: 소프트웨어디지털헬스케어융합대학 | D10: 임상병리학과 | E10: 160 | F10: 156 | G10: =E10-F10 -> 4 | H10: =F10/E10 -> 0.975
A11: 7 | B11: 일반대학원 | C11: 일반대학원(원주) | D11: 화학과 | E11: 24 | F11: 22 | G11: =E11-F11 -> 2 | H11: =F11/E11 -> 0.9166666667
A12: 8 | B12: 학부(미래) | C12: 보건과학대학 | D12: 임상병리학과 | E12: 11 | F12: 10 | G12: =E12-F12 -> 1 | H12: =F12/E12 -> 0.9090909091
A13: 9 | B13: 일반대학원 | C13: 일반대학원(원주) | D13: 작업치료학과 | E13: 57 | F13: 51 | G13: =E13-F13 -> 6 | H13: =F13/E13 -> 0.8947368421
A14: 10 | B14: 일반대학원 | C14: 일반대학원(원주) | D14: 임상병리학과 | E14: 21 | F14: 17 | G14: =E14-F14 -> 4 | H14: =F14/E14 -> 0.8095238095
A15: 11 | B15: 보건과학대학원 | C15: 보건과학대학원 | D15: 구강건강증진학전공 | E15: 10 | F15: 8 | G15: =E15-F15 -> 2 | H15: =F15/E15 -> 0.8
A16: 12 | B16: 의과대학(치위생) | C16: 원주의과대학 | D16: 치위생학과 | E16: 5 | F16: 4 | G16: =E16-F16 -> 1 | H16: =F16/E16 -> 0.8
A17: 13 | B17: 학부(미래) | C17: RC융합대학 | D17: 자율융합계열 | E17: 236 | F17: 180 | G17: =E17-F17 -> 56 | H17: =F17/E17 -> 0.7627118644
A18: 14 | B18: 일반대학원 | C18: 일반대학원(원주) | D18: 의공학과 | E18: 66 | F18: 47 | G18: =E18-F18 -> 19 | H18: =F18/E18 -> 0.7121212121
A19: 15 | B19: 학부(미래) | C19: 과학기술융합대학 | D19: 화학및의화학전공 | E19: 103 | F19: 70 | G19: =E19-F19 -> 33 | H19: =F19/E19 -> 0.6796116505
A20: 16 | B20: 일반대학원 | C20: 일반대학원(원주) | D20: 환경에너지공학과 | E20: 30 | F20: 19 | G20: =E20-F20 -> 11 | H20: =F20/E20 -> 0.6333333333
A21: 17 | B21: 학부(미래) | C21: RC융합대학 | D21: 물리치료학과 | E21: 69 | F21: 43 | G21: =E21-F21 -> 26 | H21: =F21/E21 -> 0.6231884058
A22: 18 | B22: 일반대학원 | C22: 일반대학원(원주) | D22: 치위생학과 | E22: 23 | F22: 14 | G22: =E22-F22 -> 9 | H22: =F22/E22 -> 0.6086956522
A23: 19 | B23: 학부(미래) | C23: 글로벌창의융합대학 | D23: 디지털아트학전공 | E23: 27 | F23: 16 | G23: =E23-F23 -> 11 | H23: =F23/E23 -> 0.5925925926
A24: 20 | B24: 직원 | C24: 실습지원 직원 | D24: 실습지원 직원 | E24: 10 | F24: 5 | G24: =E24-F24 -> 5 | H24: =F24/E24 -> 0.5
A25: 21 | B25: 일반대학원 | C25: 일반대학원(원주) | D25: 생명과학기술학 | E25: 20 | F25: 10 | G25: =E25-F25 -> 10 | H25: =F25/E25 -> 0.5
A26: 22 | B26: 학부(미래) | C26: 소프트웨어디지털헬스케어융합대학 | D26: 의공학부 | E26: 2 | F26: 1 | G26: =E26-F26 -> 1 | H26: =F26/E26 -> 0.5
A27: 23 | B27: 일반대학원 | C27: 일반대학원(원주) | D27: 환경공학과 | E27: 13 | F27: 6 | G27: =E27-F27 -> 7 | H27: =F27/E27 -> 0.4615384615
A28: 24 | B28: 소속외연구실 | C28: 원주산학협력단 | D28: 원주산학협력단 | E28: 42 | F28: 19 | G28: =E28-F28 -> 23 | H28: =F28/E28 -> 0.4523809524
A29: 25 | B29: 일반대학원 | C29: 일반대학원(원주) | D29: 디지털헬스케어학과 | E29: 5 | F29: 2 | G29: =E29-F29 -> 3 | H29: =F29/E29 -> 0.4
A30: 26 | B30: 학부(미래) | C30: 보건과학대학 | D30: 보건과학부 분자진단과학전공 | E30: 15 | F30: 6 | G30: =E30-F30 -> 9 | H30: =F30/E30 -> 0.4
A31: 27 | B31: 학부(미래) | C31: 과학기술융합대학 | D31: 생명과학기술학전공 | E31: 150 | F31: 55 | G31: =E31-F31 -> 95 | H31: =F31/E31 -> 0.3666666667
A32: 28 | B32: 학부(미래) | C32: 소프트웨어디지털헬스케어융합대학 | D32: 의공학전공 | E32: 159 | F32: 54 | G32: =E32-F32 -> 105 | H32: =F32/E32 -> 0.3396226415
A33: 29 | B33: 교직원 | C33: 전임교원 | D33: 전임교원 | E33: 145 | F33: 49 | G33: =E33-F33 -> 96 | H33: =F33/E33 -> 0.3379310345
A34: 30 | B34: 학부(미래) | C34: 과학기술융합대학 | D34: 환경공학전공 | E34: 48 | F34: 16 | G34: =E34-F34 -> 32 | H34: =F34/E34 -> 0.3333333333
A35: 31 | B35: 학부(미래) | C35: 과학기술대학 | D35: 화학및의화학 | E35: 34 | F35: 11 | G35: =E35-F35 -> 23 | H35: =F35/E35 -> 0.3235294118
A36: 32 | B36: 학부(미래) | C36: 과학기술융합대학 | D36: 패키징및물류학전공 | E36: 47 | F36: 14 | G36: =E36-F36 -> 33 | H36: =F36/E36 -> 0.2978723404
A37: 33 | B37: 일반대학원 | C37: 일반대학원(원주) | D37: 시각디자인학과 | E37: 17 | F37: 5 | G37: =E37-F37 -> 12 | H37: =F37/E37 -> 0.2941176471
A38: 34 | B38: 일반대학원 | C38: 일반대학원(원주) | D38: 방사선융합공학과 | E38: 37 | F38: 10 | G38: =E38-F38 -> 27 | H38: =F38/E38 -> 0.2702702703
A39: 35 | B39: 일반대학원 | C39: 일반대학원(원주) | D39: 보건행정학과 | E39: 50 | F39: 13 | G39: =E39-F39 -> 37 | H39: =F39/E39 -> 0.26
A40: 36 | B40: 학부(미래) | C40: 과학기술대학 | D40: 생명과학기술학부 | E40: 4 | F40: 1 | G40: =E40-F40 -> 3 | H40: =F40/E40 -> 0.25
A41: 37 | B41: 학부(미래) | C41: 과학기술융합대학 | D41: 생명과학기술학부 | E41: 4 | F41: 1 | G41: =E41-F41 -> 3 | H41: =F41/E41 -> 0.25
A42: 38 | B42: 학부(미래) | C42: 보건과학대학 | D42: 의료시스템공학 | E42: 4 | F42: 1 | G42: =E42-F42 -> 3 | H42: =F42/E42 -> 0.25
A43: 39 | B43: 학부(미래) | C43: 인문예술대학 | D43: 시각디자인학 | E43: 4 | F43: 1 | G43: =E43-F43 -> 3 | H43: =F43/E43 -> 0.25
A44: 40 | B44: 학부(미래) | C44: 과학기술융합대학 | D44: 친환경에너지공학전공 | E44: 46 | F44: 11 | G44: =E44-F44 -> 35 | H44: =F44/E44 -> 0.2391304348
A45: 41 | B45: 보건과학대학원 | C45: 보건과학대학원 | D45: 의생명과학전공 | E45: 18 | F45: 4 | G45: =E45-F45 -> 14 | H45: =F45/E45 -> 0.2222222222
A46: 42 | B46: 학부(미래) | C46: 글로벌창의융합대학 | D46: 시각디자인학 | E46: 107 | F46: 23 | G46: =E46-F46 -> 84 | H46: =F46/E46 -> 0.214953271
A47: 43 | B47: 일반대학원 | C47: 일반대학원(원주) | D47: 물리치료학과 | E47: 65 | F47: 13 | G47: =E47-F47 -> 52 | H47: =F47/E47 -> 0.2
A48: 44 | B48: 학부(미래) | C48: 과학기술대학 | D48: 응용생명과학 | E48: 20 | F48: 4 | G48: =E48-F48 -> 16 | H48: =F48/E48 -> 0.2
A49: 45 | B49: 일반대학원 | C49: 일반대학원(원주) | D49: 전산학과 | E49: 43 | F49: 7 | G49: =E49-F49 -> 36 | H49: =F49/E49 -> 0.1627906977
A50: 46 | B50: 학부(미래) | C50: RC융합대학 | D50: 디자인예술학부 | E50: 67 | F50: 10 | G50: =E50-F50 -> 57 | H50: =F50/E50 -> 0.1492537313
A51: 47 | B51: 학부(미래) | C51: 인문예술대학 | D51: 디자인예술학부 | E51: 68 | F51: 10 | G51: =E51-F51 -> 58 | H51: =F51/E51 -> 0.1470588235
A52: 48 | B52: 학부(미래) | C52: 글로벌창의융합대학 | D52: 산업디자인학전공 | E52: 41 | F52: 6 | G52: =E52-F52 -> 35 | H52: =F52/E52 -> 0.1463414634
A53: 49 | B53: 학부(미래) | C53: 소프트웨어디지털헬스케어융합대학 | D53: 바이오공학전공 | E53: 41 | F53: 6 | G53: =E53-F53 -> 35 | H53: =F53/E53 -> 0.1463414634
A54: 50 | B54: 학부(미래) | C54: 보건과학대학 | D54: 의공학부 | E54: 50 | F54: 7 | G54: =E54-F54 -> 43 | H54: =F54/E54 -> 0.14
A55: 51 | B55: 학부(미래) | C55: 과학기술대학 | D55: 패키징학 | E55: 16 | F55: 2 | G55: =E55-F55 -> 14 | H55: =F55/E55 -> 0.125
A56: 52 | B56: 학부(미래) | C56: 과학기술융합대학 | D56: 물리및공학물리학전공 | E56: 42 | F56: 5 | G56: =E56-F56 -> 37 | H56: =F56/E56 -> 0.119047619
A57: 53 | B57: 일반대학원 | C57: 일반대학원(원주) | D57: 패키징학과 | E57: 35 | F57: 4 | G57: =E57-F57 -> 31 | H57: =F57/E57 -> 0.1142857143
A58: 54 | B58: 학부(미래) | C58: RC융합대학 | D58: 데이터사이언스학부 | E58: 37 | F58: 4 | G58: =E58-F58 -> 33 | H58: =F58/E58 -> 0.1081081081
A59: 55 | B59: 학부(미래) | C59: 소프트웨어디지털헬스케어융합대학 | D59: 물리치료학과 | E59: 87 | F59: 9 | G59: =E59-F59 -> 78 | H59: =F59/E59 -> 0.1034482759
A60: 56 | B60: 학부(미래) | C60: 보건과학대학 | D60: 환경공학부 | E60: 41 | F60: 4 | G60: =E60-F60 -> 37 | H60: =F60/E60 -> 0.09756097561
A61: 57 | B61: 학부(미래) | C61: 소프트웨어디지털헬스케어융합대학 | D61: 디지털헬스케어전공 | E61: 105 | F61: 7 | G61: =E61-F61 -> 98 | H61: =F61/E61 -> 0.06666666667
A62: 58 | B62: 학부(미래) | C62: RC융합대학 | D62: 임상병리학과 | E62: 47 | F62: 3 | G62: =E62-F62 -> 44 | H62: =F62/E62 -> 0.06382978723
A63: 59 | B63: 학부(미래) | C63: 소프트웨어디지털헬스케어융합대학 | D63: 보건행정학전공 | E63: 112 | F63: 7 | G63: =E63-F63 -> 105 | H63: =F63/E63 -> 0.0625
A64: 60 | B64: 학부(미래) | C64: 소프트웨어디지털헬스케어융합대학 | D64: 방사선학과 | E64: 115 | F64: 7 | G64: =E64-F64 -> 108 | H64: =F64/E64 -> 0.06086956522
A65: 61 | B65: 학부(미래) | C65: 소프트웨어디지털헬스케어융합대학 | D65: 소프트웨어전공 | E65: 280 | F65: 14 | G65: =E65-F65 -> 266 | H65: =F65/E65 -> 0.05
A66: 62 | B66: 학부(미래) | C66: 과학기술대학 | D66: 정보통계학 | E66: 22 | F66: 1 | G66: =E66-F66 -> 21 | H66: =F66/E66 -> 0.04545454545
A67: 63 | B67: 학부(미래) | C67: 보건과학대학 | D67: 물리치료학과 | E67: 27 | F67: 1 | G67: =E67-F67 -> 26 | H67: =F67/E67 -> 0.03703703704
A68: 64 | B68: 학부(미래) | C68: 소프트웨어디지털헬스케어융합대학 | D68: 작업치료학과 | E68: 107 | F68: 2 | G68: =E68-F68 -> 105 | H68: =F68/E68 -> 0.01869158879
A69: 65 | B69: 학부(미래) | C69: RC융합대학 | D69: AI반도체학부 | E69: 82 | F69: 1 | G69: =E69-F69 -> 81 | H69: =F69/E69 -> 0.01219512195
A70: 66 | B70: 학부(미래) | C70: RC융합대학 | D70: 소프트웨어학부 | E70: 114 | F70: 1 | G70: =E70-F70 -> 113 | H70: =F70/E70 -> 0.008771929825
A71: 67 | B71: 보건과학대학원 | C71: 보건과학대학원 | D71: 과학수사학전공 | E71: 19 | F71: 0 | G71: =E71-F71 -> 19 | H71: =F71/E71 -> 0
A72: 68 | B72: 보건과학대학원 | C72: 보건과학대학원 | D72: 보건관리학전공 | E72: 21 | F72: 0 | G72: =E72-F72 -> 21 | H72: =F72/E72 -> 0
A73: 69 | B73: 보건과학대학원 | C73: 보건과학대학원 | D73: 인간공학치료학전공 | E73: 13 | F73: 0 | G73: =E73-F73 -> 13 | H73: =F73/E73 -> 0
A74: 70 | B74: 보건과학대학원 | C74: 보건과학대학원 | D74: 헬스케어융합학전공 | E74: 8 | F74: 0 | G74: =E74-F74 -> 8 | H74: =F74/E74 -> 0
A75: 71 | B75: 보건과학대학원 | C75: 보건과학대학원 | D75: 환경공학전공 | E75: 11 | F75: 0 | G75: =E75-F75 -> 11 | H75: =F75/E75 -> 0
A76: 72 | B76: 보건환경대학원 | C76: 보건환경대학원 | D76: 보건관리학전공 | E76: 1 | F76: 0 | G76: =E76-F76 -> 1 | H76: =F76/E76 -> 0
A77: 73 | B77: 보건환경대학원 | C77: 보건환경대학원 | D77: 의생명과학전공 | E77: 1 | F77: 0 | G77: =E77-F77 -> 1 | H77: =F77/E77 -> 0
A78: 74 | B78: 일반대학원 | C78: 일반대학원(원주) | D78: YM-KIST 바이오헬스융합학과 | E78: 1 | F78: 0 | G78: =E78-F78 -> 1 | H78: =F78/E78 -> 0
A79: 75 | B79: 일반대학원 | C79: 일반대학원(원주) | D79: 디자인경영학협동과정 | E79: 1 | F79: 0 | G79: =E79-F79 -> 1 | H79: =F79/E79 -> 0
A80: 76 | B80: 일반대학원 | C80: 일반대학원(원주) | D80: 물리학과 | E80: 3 | F80: 0 | G80: =E80-F80 -> 3 | H80: =F80/E80 -> 0
A81: 77 | B81: 일반대학원 | C81: 일반대학원(원주) | D81: 보건정책 및 관리학협동과정 | E81: 15 | F81: 0 | G81: =E81-F81 -> 15 | H81: =F81/E81 -> 0
A82: 78 | B82: 일반대학원 | C82: 일반대학원(원주) | D82: 산업디자인학과 | E82: 9 | F82: 0 | G82: =E82-F82 -> 9 | H82: =F82/E82 -> 0
A83: 79 | B83: 일반대학원 | C83: 일반대학원(원주) | D83: 정보통계학과 | E83: 7 | F83: 0 | G83: =E83-F83 -> 7 | H83: =F83/E83 -> 0
A84: 80 | B84: 학부(미래) | C84: RC융합대학 | D84: 디지털헬스케어학부 | E84: 50 | F84: 0 | G84: =E84-F84 -> 50 | H84: =F84/E84 -> 0
A85: 81 | B85: 학부(미래) | C85: RC융합대학 | D85: 방사선학과 | E85: 34 | F85: 0 | G85: =E85-F85 -> 34 | H85: =F85/E85 -> 0
A86: 82 | B86: 학부(미래) | C86: RC융합대학 | D86: 작업치료학과 | E86: 37 | F86: 0 | G86: =E86-F86 -> 37 | H86: =F86/E86 -> 0
A87: 83 | B87: 학부(미래) | C87: 과학기술대학 | D87: 물리학 | E87: 11 | F87: 0 | G87: =E87-F87 -> 11 | H87: =F87/E87 -> 0
A88: 84 | B88: 학부(미래) | C88: 과학기술대학 | D88: 생명과학 | E88: 8 | F88: 0 | G88: =E88-F88 -> 8 | H88: =F88/E88 -> 0
A89: 85 | B89: 학부(미래) | C89: 과학기술대학 | D89: 수학 | E89: 6 | F89: 0 | G89: =E89-F89 -> 6 | H89: =F89/E89 -> 0
A90: 86 | B90: 학부(미래) | C90: 과학기술대학 | D90: 컴퓨터공학 | E90: 8 | F90: 0 | G90: =E90-F90 -> 8 | H90: =F90/E90 -> 0
A91: 87 | B91: 학부(미래) | C91: 과학기술대학 | D91: 컴퓨터정보통신공학부 | E91: 60 | F91: 0 | G91: =E91-F91 -> 60 | H91: =F91/E91 -> 0
A92: 88 | B92: 학부(미래) | C92: 과학기술융합대학 | D92: AI반도체학전공 | E92: 2 | F92: 0 | G92: =E92-F92 -> 2 | H92: =F92/E92 -> 0
A93: 89 | B93: 학부(미래) | C93: 과학기술융합대학 | D93: 패키징및물류학심화전공 | E93: 1 | F93: 0 | G93: =E93-F93 -> 1 | H93: =F93/E93 -> 0
A94: 90 | B94: 학부(미래) | C94: 과학기술융합대학 | D94: 환경에너지공학부 | E94: 3 | F94: 0 | G94: =E94-F94 -> 3 | H94: =F94/E94 -> 0
A95: 91 | B95: 학부(미래) | C95: 글로벌창의융합대학 | D95: 디자인예술학부 | E95: 2 | F95: 0 | G95: =E95-F95 -> 2 | H95: =F95/E95 -> 0
A96: 92 | B96: 학부(미래) | C96: 반도체시스템공학부 | D96: 반도체시스템융합공학전공 | E96: 30 | F96: 0 | G96: =E96-F96 -> 30 | H96: =F96/E96 -> 0
A97: 93 | B97: 학부(미래) | C97: 반도체시스템공학부 | D97: 반도체인프라및환경융합전공 | E97: 30 | F97: 0 | G97: =E97-F97 -> 30 | H97: =F97/E97 -> 0
A98: 94 | B98: 학부(미래) | C98: 반도체시스템공학부 | D98: 응용전기전자융합공학전공 | E98: 59 | F98: 0 | G98: =E98-F98 -> 59 | H98: =F98/E98 -> 0
A99: 95 | B99: 학부(미래) | C99: 보건과학대학 | D99: 방사선학과 | E99: 14 | F99: 0 | G99: =E99-F99 -> 14 | H99: =F99/E99 -> 0
A100: 96 | B100: 학부(미래) | C100: 보건과학대학 | D100: 보건과학부 재활보건학전공 | E100: 1 | F100: 0 | G100: =E100-F100 -> 1 | H100: =F100/E100 -> 0
A101: 97 | B101: 학부(미래) | C101: 보건과학대학 | D101: 보건행정학과 | E101: 17 | F101: 0 | G101: =E101-F101 -> 17 | H101: =F101/E101 -> 0
A102: 98 | B102: 학부(미래) | C102: 보건과학대학 | D102: 작업치료학과 | E102: 5 | F102: 0 | G102: =E102-F102 -> 5 | H102: =F102/E102 -> 0
A103: 99 | B103: 학부(미래) | C103: 보건과학대학 | D103: 환경공학 | E103: 1 | F103: 0 | G103: =E103-F103 -> 1 | H103: =F103/E103 -> 0
A104: 100 | B104: 학부(미래) | C104: 소프트웨어디지털헬스케어융합대학 | D104: AI보건정보관리학과 | E104: 29 | F104: 0 | G104: =E104-F104 -> 29 | H104: =F104/E104 -> 0
A105: 101 | B105: 학부(미래) | C105: 소프트웨어디지털헬스케어융합대학 | D105: 데이터사이언스학부 | E105: 2 | F105: 0 | G105: =E105-F105 -> 2 | H105: =F105/E105 -> 0
A106: 102 | B106: 학부(미래) | C106: 소프트웨어디지털헬스케어융합대학 | D106: 데이터사이언스학전공 | E106: 60 | F106: 0 | G106: =E106-F106 -> 60 | H106: =F106/E106 -> 0
A107: 103 | B107: 학부(미래) | C107: 소프트웨어디지털헬스케어융합대학 | D107: 디지털헬스케어학부 | E107: 2 | F107: 0 | G107: =E107-F107 -> 2 | H107: =F107/E107 -> 0
A108: 104 | B108: 학부(미래) | C108: 소프트웨어디지털헬스케어융합대학 | D108: 보건과학부 | E108: 1 | F108: 0 | G108: =E108-F108 -> 1 | H108: =F108/E108 -> 0
A109: 105 | B109: 학부(미래) | C109: 소프트웨어디지털헬스케어융합대학 | D109: 보건과학부 재활보건학전공 | E109: 38 | F109: 0 | G109: =E109-F109 -> 38 | H109: =F109/E109 -> 0
A110: 106 | B110: 학부(미래) | C110: 소프트웨어디지털헬스케어융합대학 | D110: 보건의료정보관리학전공 | E110: 28 | F110: 0 | G110: =E110-F110 -> 28 | H110: =F110/E110 -> 0
A111: 107 | B111: 학부(미래) | C111: 소프트웨어디지털헬스케어융합대학 | D111: 보건행정학부 | E111: 5 | F111: 0 | G111: =E111-F111 -> 5 | H111: =F111/E111 -> 0
A112: 108 | B112: 학부(미래) | C112: 소프트웨어디지털헬스케어융합대학 | D112: 소프트웨어학부 | E112: 6 | F112: 0 | G112: =E112-F112 -> 6 | H112: =F112/E112 -> 0
A113: 109 | B113: 학부(미래) | C113: 소프트웨어디지털헬스케어융합대학 | D113: 헬스케어빅데이터전공 | E113: 20 | F113: 0 | G113: =E113-F113 -> 20 | H113: =F113/E113 -> 0
A114: 110 | B114: 학부(미래) | C114: 인문예술대학 | D114: 디지털아트학 | E114: 1 | F114: 0 | G114: =E114-F114 -> 1 | H114: =F114/E114 -> 0
A115: 111 | B115: 학부(미래) | C115: 인문예술대학 | D115: 산업디자인학 | E115: 1 | F115: 0 | G115: =E115-F115 -> 1 | H115: =F115/E115 -> 0
A116: 합계(명) | E116: =SUM(E5:E115) -> 4284 | F116: =SUM(F5:F115) -> 1225 | G116: =SUM(G5:G115) -> 3059 | H116: =F116/E116 -> 0.2859477124
